Cogmind - Beta 16.1 @@@ ROGUE MODE // 2026.02.21 @ 23:01:54 Player: JAM Result: Destroyed by G-47 Trooper with Particle Gun Performance ------------- Evolutions (3) 1500 Regions Visited (6) 1200 Robots Destroyed (34) 170 Value Destroyed (1086) 1086 Prototype IDs (6) 120 Alien Tech Used (0) 0 Bonus (370) 370 TOTAL SCORE: 4446 Bonus ------- Follower Combat Kills 70 Aligned with FarCom 300 Cogmind --------- Core Integrity 0/700 Matter 247/300 Energy 100/100 System Corruption 2% Temperature Cool (9) Movement Core (350) Ox6 Location -7/Factory Parts ------- > --- POWER (2) -------- (None) > --- PROPULSION (4) --- (None) > --- UTILITY (5) ------ Large Storage Unit Improved Signal Interpreter Transmission Jammer > --- WEAPON (2) ------- (None) > --- INVENTORY (15) --- Improved Heat Sink Improved Signal Interpreter Targeting Computer ECM Suite Utility Shielding Shield Generator Peak State ------------ > --- POWER ------------ Nuclear Core Light Nuclear Core > --- PROPULSION ------- VSS Leg VSS Leg VSS Leg VSS Leg > --- UTILITY ---------- Large Storage Unit Improved Signal Interpreter Hacking Suite System Shield Trap Reconfigurator > --- WEAPON ----------- Precision Beam Rifle Improved Datajack > --- INVENTORY -------- Ion Engine Ion Engine Light Nuclear Core VSS Leg VSS Leg Improved Heat Sink Improved Signal Interpreter Targeting Computer Transmission Jammer ECM Suite Utility Shielding Shield Generator Medium Laser Heavy Particle Cannon Grenade Launcher [Rating: 47] Favorites ----------- Power Ion Engine Engine Ion Engine Power Core Light Nuclear Core Propulsion VSS Leg Treads Light Treads Leg VSS Leg Wheel Wheel Utility Trap Reconfigurator Device Trap Reconfigurator Storage Large Storage Unit Processor Signal Interpreter Hackware System Shield Protection Utility Shielding Weapon Precision Beam Rifle Energy Gun Precision Beam Rifle Energy Cannon Heavy Particle Cannon Ballistic Gun Light Assault Rifle Ballistic Cannon Assault Cannon Launcher Grenade Launcher Special Weapon Mining Laser Special Melee Weapon Improved Datajack Build | -11 -10 -10 -10 -9 -8 -7 ------- Run | Yrd Mat Min Exi Min Mat Fac Slots Evolved 6 | . . . . . 4 2 Power 1 | . . . . . . 1 Propulsion 2 | . . . . . 2 . Utility 3 | . . . . . 2 1 Weapon . | . . . . . . . Parts Attached 46 | 6 3 2 3 5 20 7 Power 8 | 1 . . . 1 5 1 Engine 3 | 1 . . . . 2 . Core 5 | . . . . 1 3 1 Reactor . | . . . . . . . Propulsion 12 | 2 . 2 . 2 4 2 Treads 1 | . . . . 1 . . Leg 9 | . . 2 . 1 4 2 Wheel 2 | 2 . . . . . . Hover . | . . . . . . . Flight . | . . . . . . . Utility 15 | 1 2 . 3 . 7 2 Device 5 | . . . 2 . 2 1 Storage 4 | 1 1 . 1 . 1 . Processor 3 | . . . . . 3 . Hackware 2 | . . . . . 1 1 Protection 1 | . 1 . . . . . Artifact . | . . . . . . . Weapon 11 | 2 1 . . 2 4 2 Energy Gun 4 | 1 . . . 2 1 . Energy Cannon 1 | . . . . . 1 . Ballistic Gun 1 | 1 . . . . . . Ballistic Cannon 1 | . . . . . . 1 Launcher 1 | . . . . . 1 . Special Weapon 1 | . 1 . . . . . Impact Weapon . | . . . . . . . Slashing Weapon . | . . . . . . . Piercing Weapon . | . . . . . . . Special Melee Weapon 2 | . . . . . 1 1 Unidentified Prototypes 4 | . . . 3 . 1 . Parts Lost 26 | . . 1 . 2 3 20 Power 7 | . . . . . 2 5 Propulsion 7 | . . 1 . . . 6 Utility 4 | . . . . . 1 3 Weapon 8 | . . . . 2 . 6 Highest Loss Streak 20 | . . 1 . 2 1 20 To Critical Strikes . | . . . . . . . Average Backups 11 | 2 7 9 8 9 13 13 Power 1 | . 1 1 1 1 2 2 Propulsion 2 | 1 4 3 2 2 3 1 Utility 4 | . . 3 3 4 5 6 Weapon 1 | . 2 2 1 1 1 2 Tool/Special . | . . . . . . . Unused Backups 9 | . 1 . . 1 2 5 Power . | . . . . . . . Propulsion 3 | . . . . 1 1 1 Utility 5 | . . . . . 1 4 Weapon 1 | . 1 . . . . . Tool/Special . | . . . . . . . Average Slot Usage (%) 98 | . 98 96 99 97 99 91 Engine 6 | . 14 14 14 2 3 . Core 4 | . . . . 11 4 12 Leg 28 | . . 14 28 22 35 26 Wheel 2 | . 28 10 . . . . Device 11 | . . . 6 14 17 7 Storage 10 | . 14 14 14 14 9 7 Processor 5 | . . . . . 9 7 Hackware 2 | . . . . . . 13 Protection 2 | . 12 14 7 . . . Energy Gun 8 | . 13 . . 23 9 6 Energy Cannon 2 | . . . . . 5 . Ballistic Gun 4 | . 14 14 14 1 . . Special Weapon 3 | . . 14 14 . . . Special Melee Weapon 1 | . . . . . 1 5 Peak Build Rating 47 | 6 8 8 16 19 39 47 Average Rating 26 | 4 6 7 10 18 35 42 On Entrance 13 | . 6 8 7 16 19 39 Avg Prop Armor Cover (%) 8 | . . . . 11 8 . Naked Turns . | . . . . . . . Heaviest Build 39 | 13 19 18 18 21 39 38 Greatest Support 48 | 20 20 20 20 20 48 48 Greatest Overweight (x) 10 | . . . . 2 1 10 Average Overweight (x) . | . . . . 1 . . Largest Inventory Capacity 15 | 8 10 10 10 10 15 15 Average Capacity 12 | 6 8 10 9 10 14 15 Most Carried 15 | 7 10 10 10 10 15 15 Average Carried 11 | 3 7 9 8 9 13 13 Final Capacity 15 | 8 10 10 10 10 15 15 Final Carried 15 | 6 10 8 9 10 15 6 Class Distribution -------------------- 55% | Mutant 23% | Skirmisher 10% | Assassin 4% | Scientist-Mutant 4% | Hacker-Mutant Dominant Class ---------------- Mutant | -10/Materials Mutant | -10/Mines Mutant | -10/Exiles Mutant | -9/Mines Skirmisher | -8/Materials Scientist-Mutant | -7/Factory Resources | -11 -10 -10 -10 -9 -8 -7 ----------- Run | Yrd Mat Min Exi Min Mat Fac Matter Collected 781 | 242 54 . . 170 210 105 Remotely . | . . . . . . . Salvage Created 1142 | . 213 7 . 170 638 114 Parts 74 | . 20 . . 9 38 7 Haulers Intercepted . | . . . . . . . Recyclers Shooed . | . . . . . . . Parts Field Recycled . | . . . . . . . Retrieved Matter . | . . . . . . . Parts Self-Destructed . | . . . . . . . Prevented . | . . . . . . . Parts Restored . | . . . . . . . Kills | -11 -10 -10 -10 -9 -8 -7 ------- Run | Yrd Mat Min Exi Min Mat Fac Combat Hostiles Destroyed 30 | . 7 1 . 6 13 3 Guns 20 | . 7 . . 6 5 2 Cannons 6 | . . 1 . . 4 1 AOE 3 | . . . . . 3 . Classes Destroyed 8 | . 3 . . . 4 1 Worker 1 | . . . . . 1 . Watcher 3 | . 2 . . . 1 . Swarmer 11 | . 6 . . 4 . 1 Grunt 11 | . 1 1 . 2 6 1 Duelist 1 | . . . . . 1 . Sentry 5 | . . . . . 5 . Hunter 1 | . . . . . 1 . Programmer 1 | . . . . . . 1 Best Kill Streak 5 | . 4 1 . 4 5 2 Combat Bots Only 4 | . 4 1 . 4 3 2 Max Kills in Single Turn 2 | . 1 1 . 2 2 1 Gunslinging 1 | . . . . 1 . . Exploded 1 | . . . . . 1 . Melee . | . . . . . . . Uniques/NPCs Destroyed . | . . . . . . . Combat | -11 -10 -10 -10 -9 -8 -7 -------- Run | Yrd Mat Min Exi Min Mat Fac Hostile Shots Fired 315 | . 27 8 . 59 68 153 Missed 70 | . 7 1 . 14 16 32 Hits 245 | . 20 7 . 45 52 121 Melee 2 | . . . . . 2 . Projectile 243 | . 20 7 . 45 50 121 Critical Strikes 9 | . 1 . . 2 2 4 Damage Taken 3374 | . 159 91 . 493 897 1734 Core 982 | . 66 . . 54 149 713 Absorbed by Shields . | . . . . . . . Redirected to Shielding 7 | . . 7 . . . . Core Remaining (%) 74 | 100 . . . 52 72 . Volleys Fired 119 | . 22 3 . 27 43 24 Largest 2 | . 2 2 . 2 2 2 Hottest 136 | . 60 120 . 115 136 136 Shots Fired 178 | . 44 6 . 35 68 25 Gun 135 | . 44 3 . 35 43 10 Cannon 33 | . . . . . 18 15 Launcher 7 | . . . . . 7 . Special 3 | . . 3 . . . . Kinetic 51 | . 22 3 . 13 . 13 Thermal 98 | . . 3 . 22 61 12 Explosive 7 | . . . . . 7 . Electromagnetic 22 | . 22 . . . . . Robot Hit Streak 13 | . 6 3 . 13 12 12 Robot Miss Streak 8 | . 4 2 . 8 2 2 Penetration Max . | . . . . . . . Secondary Targets 1 | . . . . 1 . . Max Gunslinging Chain 1 | . . . . 1 . . Shots Hit Robots 127 | . 23 4 . 22 57 21 Core Hits 63 | . 11 2 . 9 31 10 Critical Kills 1 | . . . . . 1 . Critical Parts Destroyed . | . . . . . . . Critical Strikes 9 | . . . . 3 4 2 Burn 8 | . . . . 3 3 2 Meltdown 1 | . . . . . 1 . Melee Attacks 5 | . . . . . 1 4 Impact . | . . . . . . . Slashing . | . . . . . . . Piercing . | . . . . . . . Sneak Attacks . | . . . . . . . Combat Hostiles . | . . . . . . . Follow-up Attacks . | . . . . . . . Damage Inflicted 2254 | . 262 63 . 237 1295 397 Guns 1252 | . 262 15 . 237 636 102 Cannons 614 | . . . . . 350 264 Explosions 300 | . . . . . 300 . Melee . | . . . . . . . Ramming 40 | . . . . . 9 31 Kinetic 414 | . 79 15 . 106 . 214 Thermal 1317 | . . 48 . 131 986 152 Explosive 300 | . . . . . 300 . Electromagnetic 183 | . 183 . . . . . Impact . | . . . . . . . Slashing . | . . . . . . . Piercing . | . . . . . . . Highest Corruption 2 | . . . . . . 2 Average Corruption 1 | . . . . . . 1 Corruption Purged . | . . . . . . . Corruption Blocked . | . . . . . . . Effects 1 | . . . . . . 1 Heat Flow Errors 1 | . . . . . . 1 Overload Shots . | . . . . . . . Overflow Damage 2 | . . . . . . 2 Projectiles 2 | . . . . . . 2 Explosions . | . . . . . . . Melee . | . . . . . . . Knockbacks 2 | . . . . . . 2 Impact . | . . . . . . . Kinetic 1 | . . . . . . 1 Secondary 1 | . . . . . . 1 Self-Inflicted Damage 31 | . . . . . 31 . Shots 1 | . . . . . 1 . Rammed 5 | . . . . . . 5 Targets Rammed 16 | . . . . 1 2 13 Kicked 11 | . . . . 1 2 8 Crushed . | . . . . . . . Highest Temperature 459 | . 40 134 . 459 405 249 Average Temperature 97 | . 21 78 . 162 94 96 Received Heat Transfer 1143 | . . 54 . 204 306 579 Effects 8 | . . . . 5 3 . Shutdowns 1 | . . . . 1 . . Energy Bleed 3 | . . . . 2 1 . Interference 2 | . . . . . 2 . Matter Decay 1 | . . . . 1 . . Damage (minor) 1 | . . . . 1 . . Siege Activations . | . . . . . . . Martial Activations . | . . . . . . . Shielding Activations . | . . . . . . . Robots Disrupted . | . . . . . . . Combat Hostiles . | . . . . . . . Robots Corrupted . | . . . . . . . Combat Hostiles . | . . . . . . . Parts Fried . | . . . . . . . Impact Corruptions . | . . . . . . . Robots Melted 1 | . . . . . 1 . Combat Hostiles 1 | . . . . . 1 . Parts Melted 9 | . . . . 3 6 . Heat Transferred 3356 | . . 100 . 592 2183 481 Parts Sabotaged . | . . . . . . . Parts Stolen . | . . . . . . . Parts Stripped . | . . . . . . . Power Chain Reactions . | . . . . . . . Alert | -11 -10 -10 -10 -9 -8 -7 ------- Run | Yrd Mat Min Exi Min Mat Fac Maximum Alert Level . | . . . . . . . Low Security (%) 100 | 100 100 100 . 100 100 100 Level 1 . | . . . . . . . Level 2 . | . . . . . . . Level 3 . | . . . . . . . Level 4 . | . . . . . . . Level 5 . | . . . . . . . High Security . | . . . . . . . Max Security . | . . . . . . . Peak Influence 191 | . 124 60 . 90 191 79 Initial 79 | . . 40 . . 31 79 Average 34 | . 42 46 . 12 44 10 Influence Increases 1022 | . 218 30 . 140 476 158 Destroy 0b10 Robot/C 640 | . 140 20 . 120 260 100 Destroy 0b10 Robot/NC 20 | . 10 . . . 10 . Destroy Leader 166 | . 34 10 . 20 82 20 Allied During Kill 13 | . . . . . . 13 Successful Hack 42 | . 4 . . . 14 24 Disable Machine 30 | . . . . . 30 . Destroy Structure 21 | . . . . . 20 1 Partial Spotted 15 | . . . . . 15 . Lose Combat Pursuer 75 | . 30 . . . 45 . Influence Decreases 1022 | . 114 84 50 60 380 334 Entered New Map 260 | . . 64 50 . 49 97 Time Decay 570 | . 114 10 . 50 311 85 Lost Part 103 | . . 10 . 10 20 63 Lost Ally 20 | . . . . . . 20 Purge Threat 69 | . . . . . . 69 Squads Dispatched 8 | . 2 . . . 1 5 Investigation 1 | . 1 . . . . . Extermination 1 | . . . . . . 1 Reinforcement 4 | . 1 . . . 1 2 Assault . | . . . . . . . Garrison 2 | . . . . . . 2 Intercept . | . . . . . . . Searches Triggered . | . . . . . . . Construction Impeded . | . . . . . . . Haulers Reinforced . | . . . . . . . Active Scanning Responses . | . . . . . . . Cargo Convoy Interrupts . | . . . . . . . Stealth | -11 -10 -10 -10 -9 -8 -7 --------- Run | Yrd Mat Min Exi Min Mat Fac Distress Signals 4 | . 1 . . . 2 1 Communications Jammed . | . . . . . . . Distress Signals . | . . . . . . . Times Spotted 49 | . 12 2 . 6 19 10 Peak Tracking Total 8 | . 4 2 . 4 4 8 Tactical Retreats 2 | . 1 . . . 1 . Traps | -11 -10 -10 -10 -9 -8 -7 ------- Run | Yrd Mat Min Exi Min Mat Fac Traps Triggered 2 | . 1 . . . 1 . Indirectly . | . . . . . . . Trap Hack Attempts . | . . . . . . . Triggered . | . . . . . . . Disarmed . | . . . . . . . Reprogrammed . | . . . . . . . Reused . | . . . . . . . Traps Reconfigurated 4 | . . . . . 4 . Traps Extracted . | . . . . . . . Installed . | . . . . . . . Triggered . | . . . . . . . Machines | -11 -10 -10 -10 -9 -8 -7 ---------- Run | Yrd Mat Min Exi Min Mat Fac Machines Disabled 2 | . . . . . 2 . Max in Single Turn 1 | . . . . . 1 . Machines Repaired . | . . . . . . . Machines Dismantled . | . . . . . . . Machines Sabotaged . | . . . . . . . Overloaded Fab Kills . | . . . . . . . Hacking | -11 -10 -10 -10 -9 -8 -7 --------- Run | Yrd Mat Min Exi Min Mat Fac Machines Accessed 17 | . 2 . 4 . 5 6 Terminals 8 | . 1 . . . 3 4 Fabricators 1 | . . . . . . 1 Repair Stations . | . . . . . . . Recycling Units 2 | . 1 . . . 1 . Scanalyzers 2 | . . . . . 1 1 Garrison Access . | . . . . . . . Total Hacks 92 | . 9 . 49 . 18 16 Successful 75 | . 6 . 49 . 12 8 Failed 17 | . 3 . . . 6 8 Catastrophic 5 | . . . . . 2 3 Database Lockouts . | . . . . . . . Manual 2 | . . . 2 . . . Terminals 26 | . 5 . . . 11 10 Fabricators 2 | . . . . . . 2 Repair Stations . | . . . . . . . Recycling Units 7 | . 4 . . . 3 . Scanalyzers 8 | . . . . . 4 4 Garrison Access . | . . . . . . . Terminal Hacks 61 | . 3 . 49 . 6 3 Record 54 | . 1 . 49 . 2 2 Prototype ID Bank 1 | . . . . . 1 . Emergency Access Points 1 | . . . . . 1 . Unreport Threat 1 | . . . . . . 1 Locate Traps 2 | . 1 . . . 1 . Security Status 1 | . . . . . 1 . Zone Layout 1 | . 1 . . . . . Fabricator Hacks 1 | . . . . . . 1 Build 1 | . . . . . . 1 Repair Station Hacks . | . . . . . . . Recycling Unit Hacks 6 | . 3 . . . 3 . Process 2 | . 1 . . . 1 . Report Inventory 1 | . . . . . 1 . Retrieve Matter 1 | . 1 . . . . . Retrieve Components 2 | . 1 . . . 1 . Scanalyzer 7 | . . . . . 3 4 Retrieve Study 7 | . . . . . 3 4 Garrison Access Hacks . | . . . . . . . Unauthorized Hacks . | . . . . . . . Terminals . | . . . . . . . Fabricators . | . . . . . . . Repair Stations . | . . . . . . . Recycling Units . | . . . . . . . Scanalyzers . | . . . . . . . Garrison Access . | . . . . . . . Data Cores Recovered . | . . . . . . . Used . | . . . . . . . Hacking Detections 12 | . 2 . . . 4 6 Full Trace Events . | . . . . . . . Feedback Events . | . . . . . . . Feedback Blocked . | . . . . . . . Robot Schematics Acquired . | . . . . . . . Robots Built 4 | . . . . . . 4 Authchips . | . . . . . . . Time 44 | . . . . . . 44 Total Robot Build Rating 16 | . . . . . . 16 Part Schematics Acquired . | . . . . . . . Parts Built . | . . . . . . . Authchips . | . . . . . . . Time . | . . . . . . . Total Part Build Rating . | . . . . . . . Part Studies Acquired 7 | . . . . . 3 4 Parts Repaired . | . . . . . . . Time . | . . . . . . . Parts Recycled . | . . . . . . . Recycled Matter . | . . . . . . . Retrieved Matter . | . . . . . . . Retrieved Components 19 | . 10 . . . 9 . Parts Scanalyzed . | . . . . . . . Part Schematics Acquired . | . . . . . . . Parts Damaged . | . . . . . . . Bothacking | -11 -10 -10 -10 -9 -8 -7 ------------ Run | Yrd Mat Min Exi Min Mat Fac Used RIF Installer . | . . . . . . . Robots Hacked 3 | . . . . . 1 2 Non-combat . | . . . . . . . Combat 3 | . . . . . 1 2 Robot Hacks Applied 3 | . . . . . 1 2 parse_system 3 | . . . . . 1 2 Relay Couplers Released . | . . . . . . . Fabnet Peak Effective % . | . . . . . . . Robots Rewired . | . . . . . . . Allies Hacked . | . . . . . . . Hacks Repelled . | . . . . . . . Allies | -11 -10 -10 -10 -9 -8 -7 -------- Run | Yrd Mat Min Exi Min Mat Fac Total Allies 4 | . . . . . . 4 Largest Group 4 | . . . . . . 4 Highest-Rated Group 48 | . . . . . . 48 Highest-Rated Ally 12 | . . . . . . 12 Total Orders 2 | . . . . . . 2 FOLLOW 1 | . . . . . . 1 GUARD 1 | . . . . . . 1 Ally Attacks 35 | . . . . . . 35 Total Damage 289 | . . . . . . 289 Kills 2 | . . . . . . 2 Allies Corrupted . | . . . . . . . Allies Melted . | . . . . . . . Intel | -11 -10 -10 -10 -9 -8 -7 ------- Run | Yrd Mat Min Exi Min Mat Fac Active Infowar (turns) 1734 | . . . . . 1722 12 Optics 404 | . . . . . 404 . Sensors 1317 | . . . . . 1317 . Jamming 12 | . . . . . . 12 ECM 218 | . . . . . 218 . Robot Analysis Total . | . . . . . . . Derelict Logs Recovered . | . . . . . . . Drone Launches . | . . . . . . . Drone Recoveries . | . . . . . . . Exploration | -11 -10 -10 -10 -9 -8 -7 ------------- Run | Yrd Mat Min Exi Min Mat Fac Turns Passed 3947 | 52 298 29 905 297 1873 493 Spaces Moved 2392 | 47 275 10 740 87 865 368 Core 7 | 6 . . . . . 1 Treads 3 | . . . . 3 . . Legs 2066 | . . 10 740 84 865 367 Wheels 316 | 41 275 . . . . . Hover . | . . . . . . . Flight . | . . . . . . . Fastest Speed 50 | 50 80 120 120 120 75 75 Average Speed 119 | 76 80 120 120 215 143 77 Slowest Speed 550 | 80 80 120 120 260 165 550 Overloaded Moves . | . . . . . . . Propulsion Burnouts . | . . . . . . . Robots Hopped . | . . . . . . . Potential Cave-ins . | . . . . . . . Cave-ins Triggered . | . . . . . . . Exploration Rate (%) 32 | 3 51 3 93 20 51 9 Regions Visited 6 Branch Regions 3 Pre-discovered Areas 1 | . . . 1 . . . Known Exits Taken 1 | . . . . . 1 . Unknown Exits Taken 5 | 1 1 1 1 1 . . Scrap Searched . | . . . . . . . Spaces Dug . | . . . . . . . Terrain Destroyed 19 | . . . . . 18 1 Melee . | . . . . . . . Projectile 4 | . . . . . 3 1 AOE 15 | . . . . . 15 . Terrain Rammed . | . . . . . . . Walls Destroyed . | . . . . . . . Machines Disabled . | . . . . . . . Actions | -11 -10 -10 -10 -9 -8 -7 --------- Run | Yrd Mat Min Exi Min Mat Fac Total 3273 | 60 313 16 758 162 1429 535 Wait 613 | . 3 . 1 38 468 103 Move 2386 | 46 274 9 739 86 864 368 Hop . | . . . . . . . Pick Up 50 | 8 7 . 6 3 22 4 Fast Attach 10 | 4 2 . 2 1 . 1 Attach 25 | 2 . 2 2 1 7 11 Detach 4 | . . 1 3 . . . Swap 24 | . 1 . 1 4 14 4 Drop 20 | . 4 1 3 1 8 3 Fire 119 | . 22 3 . 27 43 24 Melee 5 | . . . . . 1 4 Ram 5 | . . . . . . 5 Kick 11 | . . . . 1 2 8 Crush . | . . . . . . . Escape Stasis . | . . . . . . . Rewire 1 | . . . 1 . . . Trap . | . . . . . . . Miscellaneous . | . . . . . . . Route ------- -11/Scrapyard -10/Materials (discovered 3 exits: [*Mat x2] / [*Min]) -10/Mines -10/Exiles (discovered 2 exits: [*Min x2]) -9/Mines -8/Materials -7/Factory History --------- Turn | Location | Event 3 | -11/Scrapyard | Discovered new exit (range 15) 53 | -11/Scrapyard | Entered Materials 98 | -10/Materials | Discovered new exit (range 14) 198 | -10/Materials | Discovered new exit (range 8) 304 | -10/Materials | Build established: Mutant 317 | -10/Materials | Discovered new exit (range 13) 351 | -10/Materials | Entered Mines 374 | -10/Mines | Deemed a non-threat by the Exiles lab entrance 375 | -10/Mines | Discovered new exit (range 5) 380 | -10/Mines | Entered Exiles 396 | -10/Exiles | Discovered new exit (range 15) 408 | -10/Exiles | Met 8R-AWN 434 | -10/Exiles | Met EX-HEX 523 | -10/Exiles | Met EX-DEC 583 | -10/Exiles | Visited The Gauntlet 759 | -10/Exiles | Learned location of Zion (-7) 793 | -10/Exiles | Met EX-BIN 812 | -10/Exiles | Aligned with FarCom system 813 | -10/Exiles | Given EX-Vault access code 860 | -10/Exiles | Opened EX-Vault 869 | -10/Exiles | Found Prototype Storage 871 | -10/Exiles | Identified Superbattery 884 | -10/Exiles | Found Prototype Device 886 | -10/Exiles | Identified Trap Reconfigurator 893 | -10/Exiles | Found Prototype Device 894 | -10/Exiles | Identified PSU Rigger 922 | -10/Exiles | Warned to stay clear of 0b10 Research branches 1098 | -10/Exiles | Discovered new exit (range 12) 1285 | -10/Exiles | Left Exiles lab with Trap Reconfigurator 1285 | -10/Exiles | Entered Mines 1528 | -9/Mines | Discovered new exit (range 10) 1582 | -9/Mines | Entered Materials 1582 | -8/Materials | Evolved 4 slots: Propulsion x2, Utility x2 2281 | -8/Materials | Build established: Skirmisher 2981 | -8/Materials | Build established: Assassin 3141 | -8/Materials | Discovered new exit (range 14) 3166 | -8/Materials | Identified exit to Factory 3455 | -8/Materials | Entered Factory 3455 | -7/Factory | Evolved 2 slots: Power x1, Utility x1 3571 | -7/Factory | Fabricated S-27 Virus (x4) 3811 | -7/Factory | Garrison activated, responded to threat 3920 | -7/Factory | Core integrity fell below 50% 3938 | -7/Factory | Core integrity fell below 20% 3948 | -7/Factory | Destroyed by G-47 Trooper with Particle Gun Last Messages --------------- 03927_ Lgt. Nuclear Core+ destroyed. 03930_ Trap Reconfigurator destroyed. 03930_ Jacked G-47 Trooper... >>parse_system Reading system data... 03932_ Imp. Datajack+ destroyed. 03932_ R-06 Scavenger destroyed. 03932_ Slammed into G-47 Trooper. 03932_ Destabilizing: System interference. 03932_ Imp. Signal Interpreter temporarily disabled. 03932_ Transmission Jammer temporarily disabled. 03934_ Ion Engine+ destroyed. 03934_ M-28 Smith repairs G-47 Trooper. 03936_ M-28 Smith repairs G-47 Trooper Lgt. Nuclear Core. 03937_ Slammed into S-27 Virus. 03937_ System Shield destroyed. 03938_ M-28 Smith repairs G-47 Trooper Particle Gun. 03940_ Slammed into S-27 Virus. 03944_ Critical hit (Burn: +37). 03947_ Slammed into S-27 Virus. Map ----- +----------------------------------------------------+ | | | ?????????????????????????????????????????????????? | | ?????????????????????????????????????????????????? | | ?????????????????????????????????????????????????? | | ?????????????????????????????????????????????????? | | ?????????????????????????????????????????????????? | | ?????????????????????????????????????????????????? | | ?????????????????????????????????????????????????? | | ?????????????????????????????????????????????????? | | ?????????????????????????????????????????????????? | | ?????????????????????????????????????????????????? | | ?????????????????????????????????????????????????? | | ?????????????????????????????????????????????????? | | ?????????????????????????????????????????????????? | | ????????????????????###########??????????????????? | | ????????????????????# ! #??????????????????? | | ????????????????????# ######?????????????? | | ????????????????????# # ? ???????????? | | ????????????????????# # ?????????? | | ????????????????????# # " ""?????????? | | ????????????????#???# %%# "G" ""? ??????? | | ????????????????# ??# Y%![ # " " """ ??????? | | ????????????????# ??# *g%*%# ??????? | | ????????????????#k#########g### """ """ #?????? | | ????????????????# uu s """ """ #?????? | | ????????????????# @ """ """ #?????? | | ????????????????+ #?????? | | ????????????????# u """ """ #?????? | | ????????????????# *% k u """ """ #?????? | | ????????????????####+########## """ """ #?????? | | ????????????????# %% ## m ####### | | ????????????????# """"""""" ## """ """ | | ????????????????# % ## """ """ | | ????????????????# ""T"" ## """ """ | | ????????????????#[ """"" ## | | ????????????????############### | | ????????????????????# ! # ############## | | ????????????????????# # # #?# | | ????????????????????# # # #?# | | ????????????????????# + + #?# | | ????????????????????# [ # # #?#! | | ????????????????????# # # #?# | | ????????????????????# # # #?# | | ????????????????????# # # #?# | | ????????????????????########### # #?# | | ????????????????############### ##+########?## | | ????????????????#! ] # #?????????? | | ????????????????# # #?????????? | | ????????????????# # """ #?????????? | | ????????????????# # """ #?????????? | +----------------------------------------------------+ Best States ------------- Heat Dissipation 34 Energy Generation 26 Energy Capacity 310 Matter Stores 300 Matter Capacity 300 Sight Range 18 Robot Scan Range 15 Terrain Scan Density 10 ECM Strength 1 Jamming Range 12 Utility Shielding 33 Evasion (%) 60 Recoil Reduction 1 Offensive Hacking 10 Defensive Hacking 10 Item Schematics ----------------- None Robot Schematics ------------------ None Fabricated ------------ S-27 Virus | x4 | -7/Factory | Preloaded Repaired ---------- Nothing Studied --------- VSS Leg | -8/Materials | Hacked Lgt. Nuclear Core | -8/Materials | Hacked Hvy. Particle Cannon | -8/Materials | Hacked Nuclear Core | -7/Factory | Hacked Imp. Datajack | -7/Factory | Hacked Grenade Launcher | -7/Factory | Hacked Ion Engine | -7/Factory | Hacked Alien Tech Used ----------------- None Achievements -------------- Bumper Bots DATA ERROR: Steam Global Achievement% Everything Is Under Control For Emergencies Only Ghost 'Em Hydra I Have A Map? I Spy It's Just You Item+ Sixth Sense Spot Them First Sprinter There's More Where That Came From Tourist Challenges ------------ None Game ------ Seed LongswordZeronetCompactor Manual? 0 Play Time 02:18:59 Cumulative 4.4 hours Start 2026.02.21 @ 20:00:45 End 2026.02.21 @ 23:01:54 Sessions 1 Manual Loads 0 Difficulty Rogue Special Mode None Game No. 5 Rogue 5 Adventurer 0 Explorer 0 Win Type - Total 0 Types 0/0/0/0/0/0/0/0/0/0 Lore% 6 Gallery% 5 Achievement% 7 Wizard Run 0 Options --------- Layout 0 ASCII 0 Keyboard 1 Movement Numpad Keybinds 0 Fullscreen 2 Font 18/SmallcapsGlow Map View 76x50 Zoom Use 1% Tactical HUD 1 Map Filters NONE Filters NONE Steam 1 RUN: ac4233b8-5b52-48e4-a6a9-cb92caf5828b